Cogmind - Beta 11.1 @@@ ROGUE MODE // 2022.09.25 @ 14:28:30 Player: Sara Result: Destroyed by Y-64 Sentinel with Wave Gun Performance ------------- Evolutions (5) 2500 Regions Visited (9) 1800 Robots Destroyed (0) 0 Value Destroyed (0) 0 Prototype IDs (2) 40 Alien Tech Used (0) 0 Bonus (2123) 2123 TOTAL SCORE: 6463 Bonus ------- Pacifist 1623 Entered DSFs 500 Cogmind --------- Core Integrity 0/1000 Matter 260/300 Energy 98/100 System Corruption 6% Temperature Cool (27) Movement Core (50) Location -5/Factory Parts ------- > --- POWER (1) -------- (None) > --- PROPULSION (2) --- (None) > --- UTILITY (12) ----- (None) > --- WEAPON (2) ------- (None) > --- INVENTORY (5) ---- Seismic Detector Rocket Launcher Long-range Missile Launcher Peak State ------------ > --- POWER ------------ Micro Fission Core > --- PROPULSION ------- (None) > --- UTILITY ---------- Advanced Weight Redist. System Advanced Weight Redist. System Advanced Weight Redist. System Structural Scanner > --- WEAPON ----------- Heavy Pick > --- INVENTORY -------- Seismic Detector Plasma Cannon Rocket Launcher Long-range Missile Launcher [Rating: 22] Favorites ----------- Power Light Ion Engine Engine Light Ion Engine Power Core Micro Fission Core Propulsion None Utility Structural Scanner Device Structural Scanner Processor Improved Targeting Computer Protection Medium Armor Plating Weapon Small Laser Energy Gun Small Laser Energy Cannon Plasma Cannon Ballistic Gun Light Assault Rifle Piercing Weapon Heavy Pick Build | -11 -10 -10 -9 -9 -9 -7 -7 -6 -5 ------- Run | Scr Mat Min Mat Sto Rec Fac DSF Fac Fac Slots Evolved 10 | . . . 2 . . 4 . 2 2 Power . | . . . . . . . . . . Propulsion . | . . . . . . . . . . Utility 10 | . . . 2 . . 4 . 2 2 Weapon . | . . . . . . . . . . Parts Attached 18 | . 2 1 . 3 1 . . 1 10 Power 2 | . . . . . . . . . 2 Engine 1 | . . . . . . . . . 1 Core 1 | . . . . . . . . . 1 Reactor . | . . . . . . . . . . Propulsion . | . . . . . . . . . . Treads . | . . . . . . . . . . Leg . | . . . . . . . . . . Wheel . | . . . . . . . . . . Hover . | . . . . . . . . . . Flight . | . . . . . . . . . . Utility 10 | . 1 . . 3 1 . . 1 4 Device 6 | . 1 . . . 1 . . 1 3 Storage . | . . . . . . . . . . Processor 3 | . . . . 3 . . . . . Hackware . | . . . . . . . . . . Protection 1 | . . . . . . . . . 1 Artifact . | . . . . . . . . . . Weapon 6 | . 1 1 . . . . . . 4 Energy Gun 1 | . 1 . . . . . . . . Energy Cannon 1 | . . . . . . . . . 1 Ballistic Gun 1 | . . 1 . . . . . . . Ballistic Cannon . | . . . . . . . . . . Launcher . | . . . . . . . . . . Special Weapon . | . . . . . . . . . . Impact Weapon . | . . . . . . . . . . Slashing Weapon . | . . . . . . . . . . Piercing Weapon 3 | . . . . . . . . . 3 Special Melee Weapon . | . . . . . . . . . . Unidentified Prototypes . | . . . . . . . . . . Parts Lost 11 | . . . 1 1 . . 2 . 7 Power 2 | . . . . . . . . . 2 Propulsion . | . . . . . . . . . . Utility 6 | . . . . . . . 2 . 4 Weapon 3 | . . . 1 1 . . . . 1 Highest Loss Streak 5 | . . . 1 1 . . 2 . 5 To Critical Strikes . | . . . . . . . . . . Average Slot Usage (%) 26 | . 15 35 33 49 44 30 24 6 17 Device 9 | . 1 14 11 11 11 7 5 6 9 Processor 8 | . . . . 30 33 23 19 . . Energy Gun 3 | . 14 14 11 . . . . . . Ballistic Gun 2 | . . 7 11 8 . . . . . Naked Turns 11 | . . . . . . . 2 . 9 Heaviest Build 11 | . 2 3 3 2 1 1 1 1 11 Greatest Support 12 | 3 3 3 3 3 3 3 3 3 12 Greatest Overweight (x) 2 | . . . . . . . . . 2 Average Overweight (x) . | . . . . . . . . . . Largest Inventory Capacity 5 | 5 5 5 5 5 5 5 5 5 5 Average Capacity 5 | 5 5 5 5 5 5 5 5 5 5 Most Carried 5 | 3 2 5 5 5 5 5 5 4 5 Average Carried 4 | 2 2 4 5 5 4 5 5 4 3 Final Capacity 5 | 5 5 5 5 5 5 5 5 5 5 Final Carried 5 | 3 2 5 5 5 5 5 5 4 3 Class Distribution -------------------- 100% | Mutant Dominant Class ---------------- Mutant | -10/Materials Mutant | -10/Mines Mutant | -9/Materials Mutant | -9/Storage Mutant | -9/Recycling Mutant | -7/Factory Mutant | -7/DSF Mutant | -6/Factory Mutant | -5/Factory Resources | -11 -10 -10 -9 -9 -9 -7 -7 -6 -5 ----------- Run | Scr Mat Min Mat Sto Rec Fac DSF Fac Fac Matter Collected 292 | 200 . 30 . . 14 . 8 . 40 Remotely . | . . . . . . . . . . Salvage Created . | . . . . . . . . . . Parts . | . . . . . . . . . . Haulers Intercepted . | . . . . . . . . . . Recyclers Shooed . | . . . . . . . . . . Parts Field Recycled . | . . . . . . . . . . Retrieved Matter . | . . . . . . . . . . Parts Self-Destructed . | . . . . . . . . . . Prevented . | . . . . . . . . . . Kills | -11 -10 -10 -9 -9 -9 -7 -7 -6 -5 ------- Run | Scr Mat Min Mat Sto Rec Fac DSF Fac Fac Combat Hostiles Destroyed . | . . . . . . . . . . Classes Destroyed . | . . . . . . . . . . Best Kill Streak . | . . . . . . . . . . Combat Bots Only . | . . . . . . . . . . Max Kills in Single Turn . | . . . . . . . . . . Gunslinging . | . . . . . . . . . . Exploded . | . . . . . . . . . . Melee . | . . . . . . . . . . Uniques/NPCs Destroyed . | . . . . . . . . . . Combat | -11 -10 -10 -9 -9 -9 -7 -7 -6 -5 -------- Run | Scr Mat Min Mat Sto Rec Fac DSF Fac Fac Damage Taken 2172 | . 30 52 102 213 . . 299 . 1476 Core 1517 | . 18 17 60 138 . . 265 . 1019 Absorbed by Shields 78 | . . . . 40 . . 38 . . Core Remaining (%) 79 | 100 . 86 . . 50 . 62 100 . Volleys Fired 4 | . . . . . . . . . 4 Largest 1 | . . . . . . . . . 1 Hottest 80 | . . . . . . . . . 80 Shots Fired 4 | . . . . . . . . . 4 Gun . | . . . . . . . . . . Cannon 4 | . . . . . . . . . 4 Launcher . | . . . . . . . . . . Special . | . . . . . . . . . . Kinetic . | . . . . . . . . . . Thermal 4 | . . . . . . . . . 4 Explosive . | . . . . . . . . . . Electromagnetic . | . . . . . . . . . . Robot Hit Streak . | . . . . . . . . . . Robot Miss Streak . | . . . . . . . . . . Penetration Max . | . . . . . . . . . . Secondary Targets . | . . . . . . . . . . Shots Hit Robots . | . . . . . . . . . . Core Hits 1 | . . . 1 . . . . . . Critical Kills . | . . . . . . . . . . Critical Parts Destroyed . | . . . . . . . . . . Critical Strikes . | . . . . . . . . . . Melee Attacks 11 | . . . . . . . . . 11 Impact . | . . . . . . . . . . Slashing . | . . . . . . . . . . Piercing 11 | . . . . . . . . . 11 Sneak Attacks . | . . . . . . . . . . Combat Hostiles . | . . . . . . . . . . Follow-up Attacks . | . . . . . . . . . . Damage Inflicted 14 | . . . 11 3 . . . . . Guns . | . . . . . . . . . . Cannons . | . . . . . . . . . . Explosions . | . . . . . . . . . . Melee . | . . . . . . . . . . Ramming 14 | . . . 11 3 . . . . . Kinetic . | . . . . . . . . . . Thermal . | . . . . . . . . . . Explosive . | . . . . . . . . . . Electromagnetic . | . . . . . . . . . . Impact . | . . . . . . . . . . Slashing . | . . . . . . . . . . Piercing . | . . . . . . . . . . Highest Corruption 6 | . . . . 6 6 . 4 . 6 Average Corruption 5 | . . . . 4 6 . 4 . 6 Corruption Purged . | . . . . . . . . . . Corruption Blocked . | . . . . . . . . . . Effects 13 | . . . . 4 5 . 1 . 3 Message Errors 5 | . . . . 2 1 . 1 . 1 Heat Flow Errors 3 | . . . . . 1 . . . 2 Energy Discharges 1 | . . . . 1 . . . . . Parts Rejected 1 | . . . . . 1 . . . . Data Loss (major) 3 | . . . . 1 2 . . . . Overload Shots . | . . . . . . . . . . Overflow Damage . | . . . . . . . . . . Projectiles . | . . . . . . . . . . Explosions . | . . . . . . . . . . Melee . | . . . . . . . . . . Knockbacks . | . . . . . . . . . . Impact . | . . . . . . . . . . Kinetic . | . . . . . . . . . . Secondary . | . . . . . . . . . . Self-Inflicted Damage 5 | . . . 5 . . . . . . Shots . | . . . . . . . . . . Rammed 4 | . . . 1 3 . . . . . Targets Rammed 4 | . . . 1 3 . . . . . Kicked . | . . . . . . . . . . Crushed . | . . . . . . . . . . Highest Temperature 240 | . . . . 6 240 . . . 187 Average Temperature 102 | . . . . 6 128 . . . 93 Received Heat Transfer 247 | . 15 . 18 115 . . . . 99 Siege Activations . | . . . . . . . . . . Robots Corrupted . | . . . . . . . . . . Combat Hostiles . | . . . . . . . . . . Parts Fried . | . . . . . . . . . . Impact Corruptions . | . . . . . . . . . . Robots Melted . | . . . . . . . . . . Combat Hostiles . | . . . . . . . . . . Parts Melted . | . . . . . . . . . . Heat Transferred . | . . . . . . . . . . Parts Sabotaged . | . . . . . . . . . . Parts Stolen . | . . . . . . . . . . Parts Stripped . | . . . . . . . . . . Power Chain Reactions . | . . . . . . . . . . Missiles Intercepted . | . . . . . . . . . . Alert | -11 -10 -10 -9 -9 -9 -7 -7 -6 -5 ------- Run | Scr Mat Min Mat Sto Rec Fac DSF Fac Fac Peak Influence 960 | . 69 26 69 156 146 960 675 343 310 Initial 960 | . . 26 9 24 56 960 675 343 168 Average 165 | . 12 26 35 88 100 960 666 343 218 Maximum Alert Level 3 | . . . . . . 3 2 1 1 Low Security (%) 60 | 100 100 100 100 100 100 . . . 26 Level 1 34 | . . . . . . . . 100 73 Level 2 3 | . . . . . . . 100 . . Level 3 1 | . . . . . . 100 . . . Level 4 . | . . . . . . . . . . Level 5 . | . . . . . . . . . . High Security . | . . . . . . . . . . Max Security . | . . . . . . . . . . Squads Dispatched 4 | . 2 . . 1 . . 1 . . Investigation 1 | . 1 . . . . . . . . Extermination . | . . . . . . . . . . Reinforcement 3 | . 1 . . 1 . . 1 . . Assault . | . . . . . . . . . . Garrison . | . . . . . . . . . . Intercept . | . . . . . . . . . . Searches Triggered . | . . . . . . . . . . Construction Impeded . | . . . . . . . . . . Haulers Reinforced . | . . . . . . . . . . Active Scanning Responses . | . . . . . . . . . . Cargo Convoy Interrupts . | . . . . . . . . . . Stealth | -11 -10 -10 -9 -9 -9 -7 -7 -6 -5 --------- Run | Scr Mat Min Mat Sto Rec Fac DSF Fac Fac Distress Signals 6 | . . . 1 3 . . . . 2 Communications Jammed . | . . . . . . . . . . Distress Signals . | . . . . . . . . . . Times Spotted 63 | . 6 3 11 14 9 . 4 . 16 Peak Tracking Total 12 | . 6 3 10 12 7 . 4 . 10 Tactical Retreats 6 | . . . . 1 . . . . 5 Traps | -11 -10 -10 -9 -9 -9 -7 -7 -6 -5 ------- Run | Scr Mat Min Mat Sto Rec Fac DSF Fac Fac Traps Triggered 4 | . . . . 1 . . 2 . 1 Indirectly . | . . . . . . . . . . Trap Hack Attempts . | . . . . . . . . . . Triggered . | . . . . . . . . . . Disarmed . | . . . . . . . . . . Reprogrammed . | . . . . . . . . . . Reused . | . . . . . . . . . . Traps Extracted . | . . . . . . . . . . Installed . | . . . . . . . . . . Triggered . | . . . . . . . . . . Machines | -11 -10 -10 -9 -9 -9 -7 -7 -6 -5 ---------- Run | Scr Mat Min Mat Sto Rec Fac DSF Fac Fac Machines Disabled . | . . . . . . . . . . Max in Single Turn . | . . . . . . . . . . Machines Sabotaged . | . . . . . . . . . . Garrisons Compromised . | . . . . . . . . . . Overloaded Fab Kills . | . . . . . . . . . . Hacking | -11 -10 -10 -9 -9 -9 -7 -7 -6 -5 --------- Run | Scr Mat Min Mat Sto Rec Fac DSF Fac Fac Machines Accessed 15 | . 3 . 2 2 3 1 . 1 3 Terminals 13 | . 3 . 2 2 2 1 . 1 2 Fabricators 1 | . . . . . . . . . 1 Repair Stations . | . . . . . . . . . . Recycling Units 1 | . . . . . 1 . . . . Scanalyzers . | . . . . . . . . . . Garrison Access . | . . . . . . . . . . Total Hacks 32 | . 9 . 2 6 7 1 . 1 6 Successful 12 | . 2 . . 3 2 1 . 1 3 Failed 20 | . 7 . 2 3 5 . . . 3 Catastrophic 6 | . 2 . 2 1 . . . . 1 Database Lockouts . | . . . . . . . . . . Manual 16 | . 8 . 2 1 3 . . . 2 Terminals 29 | . 9 . 2 6 6 1 . 1 4 Fabricators 2 | . . . . . . . . . 2 Repair Stations . | . . . . . . . . . . Recycling Units 1 | . . . . . 1 . . . . Scanalyzers . | . . . . . . . . . . Garrison Access . | . . . . . . . . . . Terminal Hacks 9 | . 1 . . 3 1 1 . 1 2 Record 1 | . . . . . . . . . 1 Robot Schematic 1 | . . . . 1 . . . . . Robot Analysis 1 | . . . . . . . . . 1 Prototype ID Bank 1 | . . . . 1 . . . . . Open Door 1 | . . . . 1 . . . . . Open DSF 1 | . . . . . . 1 . . . Branch Access Points 1 | . 1 . . . . . . . . Alert Level 2 | . . . . . 1 . . 1 . Fabricator Hacks 1 | . . . . . . . . . 1 Build 1 | . . . . . . . . . 1 Repair Station Hacks . | . . . . . . . . . . Recycling Unit Hacks 1 | . . . . . 1 . . . . Retrieve Components 1 | . . . . . 1 . . . . Scanalyzer . | . . . . . . . . . . Garrison Access Hacks . | . . . . . . . . . . Unauthorized Hacks 1 | . 1 . . . . . . . . Terminals 1 | . 1 . . . . . . . . Assimilate 1 | . 1 . . . . . . . . Fabricators . | . . . . . . . . . . Repair Stations . | . . . . . . . . . . Recycling Units . | . . . . . . . . . . Scanalyzers . | . . . . . . . . . . Garrison Access . | . . . . . . . . . . Data Cores Recovered . | . . . . . . . . . . Used . | . . . . . . . . . . Hacking Detections 12 | . 3 . 2 1 2 . . 1 3 Full Trace Events 2 | . 2 . . . . . . . . Feedback Events . | . . . . . . . . . . Feedback Blocked . | . . . . . . . . . . Robot Schematics Acquired 1 | . . . . 1 . . . . . Robots Built 1 | . . . . . . . . . 1 Authchips . | . . . . . . . . . . Time 27 | . . . . . . . . . 27 Total Robot Build Rating 1 | . . . . . . . . . 1 Part Schematics Acquired . | . . . . . . . . . . Parts Built . | . . . . . . . . . . Authchips . | . . . . . . . . . . Time . | . . . . . . . . . . Total Part Build Rating . | . . . . . . . . . . Parts Repaired . | . . . . . . . . . . Time . | . . . . . . . . . . Parts Recycled . | . . . . . . . . . . Recycled Matter . | . . . . . . . . . . Retrieved Matter . | . . . . . . . . . . Retrieved Components 2 | . . . . . 2 . . . . Parts Scanalyzed . | . . . . . . . . . . Part Schematics Acquired . | . . . . . . . . . . Parts Damaged . | . . . . . . . . . . Bothacking | -11 -10 -10 -9 -9 -9 -7 -7 -6 -5 ------------ Run | Scr Mat Min Mat Sto Rec Fac DSF Fac Fac Used RIF Installer . | . . . . . . . . . . Robots Hacked . | . . . . . . . . . . Non-combat . | . . . . . . . . . . Combat . | . . . . . . . . . . Robot Hacks Applied . | . . . . . . . . . . Relay Couplers Released . | . . . . . . . . . . Fabnet Peak Effective % . | . . . . . . . . . . Robots Rewired . | . . . . . . . . . . Allies Hacked . | . . . . . . . . . . Hacks Repelled . | . . . . . . . . . . Allies | -11 -10 -10 -9 -9 -9 -7 -7 -6 -5 -------- Run | Scr Mat Min Mat Sto Rec Fac DSF Fac Fac Total Allies 1 | . . . . . . . . . 1 Largest Group 1 | . . . . . . . . . 1 Highest-Rated Group 10 | . . . . . . . . . 10 Highest-Rated Ally 10 | . . . . . . . . . 10 Total Orders . | . . . . . . . . . . Ally Attacks . | . . . . . . . . . . Total Damage . | . . . . . . . . . . Kills . | . . . . . . . . . . Allies Corrupted . | . . . . . . . . . . Allies Melted . | . . . . . . . . . . Intel | -11 -10 -10 -9 -9 -9 -7 -7 -6 -5 ------- Run | Scr Mat Min Mat Sto Rec Fac DSF Fac Fac Robot Analysis Total 1 | . . . . . . . . . 1 Derelict Logs Recovered 1 | . . 1 . . . . . . . Drone Launches . | . . . . . . . . . . Drone Recoveries . | . . . . . . . . . . Exploration | -11 -10 -10 -9 -9 -9 -7 -7 -6 -5 ------------- Run | Scr Mat Min Mat Sto Rec Fac DSF Fac Fac Turns Passed 1161 | 33 113 131 46 118 143 14 40 56 467 Spaces Moved 1926 | 60 219 238 89 202 254 27 67 77 693 Core 1926 | 60 219 238 89 202 254 27 67 77 693 Treads . | . . . . . . . . . . Legs . | . . . . . . . . . . Wheels . | . . . . . . . . . . Hover . | . . . . . . . . . . Flight . | . . . . . . . . . . Fastest Speed 50 | 50 50 50 50 50 50 50 50 50 50 Average Speed 50 | 50 50 50 50 50 50 50 50 50 50 Slowest Speed 150 | 50 50 50 50 50 50 50 50 50 150 Overloaded Moves . | . . . . . . . . . . Propulsion Burnouts . | . . . . . . . . . . Robots Hopped . | . . . . . . . . . . Cave-ins Triggered 1 | . . . . . . . . . 1 Exploration Rate (%) 35 | 4 37 61 15 56 72 2 83 3 25 Regions Visited 9 Branch Regions 3 Pre-discovered Areas 1 | . . 1 . . . . . . . Known Exits Taken 2 | . 1 . . . . 1 . . . Unknown Exits Taken 6 | 1 . 1 1 1 1 . . 1 . Scrap Searched 1 | . . 1 . . . . . . . Spaces Dug 6 | . . . . . . . . . 6 Terrain Destroyed 7 | . . . . . . . . . 7 Melee 6 | . . . . . . . . . 6 Projectile 1 | . . . . . . . . . 1 AOE . | . . . . . . . . . . Terrain Rammed . | . . . . . . . . . . Walls Destroyed . | . . . . . . . . . . Machines Disabled . | . . . . . . . . . . Actions | -11 -10 -10 -9 -9 -9 -7 -7 -6 -5 --------- Run | Scr Mat Min Mat Sto Rec Fac DSF Fac Fac Total 2078 | 62 221 248 90 216 269 27 72 93 780 Wait 98 | . 1 7 1 . 13 . 4 16 56 Move 1919 | 59 218 237 89 201 253 27 66 76 693 Hop . | . . . . . . . . . . Pick Up 10 | 3 . 3 . . 1 . . . 3 Fast Attach 10 | . 1 1 . 3 1 . . . 4 Attach 7 | . 1 . . . . . . 1 5 Detach 1 | . . . . . . . . . 1 Swap 1 | . . . . . . . . . 1 Drop 3 | . . . . . 1 . . . 2 Fire 4 | . . . . . . . . . 4 Melee 11 | . . . . . . . . . 11 Ram 3 | . . . . 3 . . . . . Kick . | . . . . . . . . . . Crush . | . . . . . . . . . . Escape Stasis 11 | . . . . 9 . . 2 . . Rewire . | . . . . . . . . . . Trap . | . . . . . . . . . . Miscellaneous . | . . . . . . . . . . Route ------- -11/Scrapyard -10/Materials (discovered 2 exits: *Min x2) -10/Mines -9/Materials -9/Storage -9/Recycling -7/Factory -7/DSF -6/Factory -5/Factory History --------- Turn | Location | Event 3 | -11/Scrapyard | Discovered new exit (range 15) 34 | -11/Scrapyard | Entered Materials 138 | -10/Materials | Identified exit to Mines 147 | -10/Materials | Entered Mines 199 | -10/Mines | Received a Rocket Launcher from a helpful Derelict 242 | -10/Mines | Met a Derelict bent on vengeance 272 | -10/Mines | Discovered new exit (range 15) 278 | -10/Mines | Entered Materials 278 | -9/Materials | Evolved 2 slots: Utility x2 305 | -9/Materials | Build established: Mutant 320 | -9/Materials | Discovered new exit (range 10) 324 | -9/Materials | Entered Storage 440 | -9/Storage | Used back door to open Recycling access 440 | -9/Storage | Discovered new exit (range 5) 442 | -9/Storage | Entered Recycling 489 | -9/Recycling | Spotter reported a threat 496 | -9/Recycling | Spotter reported a threat 499 | -9/Recycling | Spotter reported a threat 516 | -9/Recycling | Spotter reported a threat 518 | -9/Recycling | Spotter reported a threat 522 | -9/Recycling | Spotter reported a threat 523 | -9/Recycling | Spotter reported a threat 542 | -9/Recycling | Spotter reported a threat 549 | -9/Recycling | Spotter reported a threat 552 | -9/Recycling | Spotter reported a threat 554 | -9/Recycling | Spotter reported a threat 578 | -9/Recycling | Discovered new exit (range 15) 585 | -9/Recycling | Entered Factory 585 | -7/Factory | Evolved 4 slots: Utility x4 599 | -7/Factory | Identified exit to DSF 599 | -7/Factory | Entered DSF 627 | -7/DSF | Additional patrols routed to DSF 631 | -7/DSF | Discovered new exit (range 16) 639 | -7/DSF | Entered Factory 639 | -6/Factory | Evolved 2 slots: Utility x2 684 | -6/Factory | Discovered new exit (range 16) 695 | -6/Factory | Entered another Factory area 695 | -5/Factory | Evolved 2 slots: Utility x2 777 | -5/Factory | Fabricated T-07 Excavator? 1066 | -5/Factory | Core integrity fell below 50% 1072 | -5/Factory | Crushed by falling debris 1088 | -5/Factory | Core integrity fell below 20% 1103 | -5/Factory | Lost 5 parts (1p4u) 1162 | -5/Factory | Destroyed by Y-64 Sentinel with Wave Gun Last Messages --------------- 01035_ Adv. Weight Redist. System destroyed. 01042_ K-01 Serf cleans the Nuclear Reactor. 01043_ Adv. Weight Redist. System destroyed. 01046_ Mic. Fission Core destroyed. 01066_ ALERT: Security rotation in progress. 01072_ The unstable cave ceiling collapses. 01072_ Crushed by falling debris. 01072_ Adv. Weight Redist. System destroyed. 01072_ System corrupted by crushing effect (+3). 01072_ Structural Scanner destroyed. 01072_ System corrupted by crushing effect (+3). 01075_ System corrupted: Heat flow error (+226). 01078_ S-27 Virus destroyed. 01091_ Dropped Plasma Cannon. 01121_ W-25 Informer sends out distress signal. 01123_ System corrupted: Heat flow error (+150). 01140_ %DNUSDEZM#ZOD S5>NAEW,DK 01157_ Hvy. Pick destroyed. 01159_ Penetrated by Slug. 01162_ Critical hit (Burn: +37). Map ----- +----------------------------------------------------+ | ????????????????????? | | ^ ?????????????????????? | | """" ??????????????????????? | | ############/### ""R" ???????????????????????? | | ??????# # "" " ????????????????????????? | | ##??????# """"# ?????????????????????????? | | ????????# """"# ??????????????????????????? | | ????????# """"# ???????????????????????????? | | ????????# """"# #???????????????????????????? | | ????????# """"# #???????????????????????????? | | ????????# """"# #???????????????????????????? | | ????????# """"# #???????????????????????????? | | ????????# " #???????????????????????????? | | ????????########## #???????????????????????????? | | ?????????????????# #???????????????????????????? | | ?????????????????# #???????????????????????????? | | ?????????????????# ###########?????????????????? | | ?????????????????# # #?????????????????? | | ?????????????????# # #?????????????????? | | ?????????????????# # #?????????????????? | | ?????????????????# # ]] #?????????????????? | | ?????????????????# # ]] #?????????????????? | | ?????????????????# # ] #?????????????????? | | ?????????????????# # #?????????????????? | | ?????????????????# # #?????????????????? | | ?????????????????# ####@######?????????????????? | | ?????????????????# ## #######??????????????? | | ?????????????????# ## ??????????? | | ?????????????????# Y ?????????? | | ?????????????????###### ??????????? | | ??????????????????????# ###########??????????? | | ??????????????????????#######????????????????????? | | ?????????????????????????????????????????????????? | | ?????????????????????????????????????????????????? | | | | | | | | | | | | | | | | | | | | | | | | | | | | | | | | | +----------------------------------------------------+ Best States ------------- Heat Dissipation 40 Energy Generation 15 Energy Capacity 150 Matter Stores 300 Matter Capacity 300 Sight Range 16 Terrain Scan Density 10 Additional Mass Support 9 Armor Coverage 225 Evasion (%) 50 Targeting Accuracy 12 Salvage Targeting 1 Item Schematics ----------------- None Robot Schematics ------------------ G-34 Mercenary | -9/Storage | Hacked Fabricated ------------ T-07 Excavator | x1 | -5/Factory | Preloaded Alien Tech Used ----------------- None Achievements -------------- None Challenges ------------ None Game ------ Seed MinesnifferSegregatorSource Manual? 0 Play Time 00:23:24 Cumulative 107.7 hours Start 2022.09.25 @ 14:07:26 End 2022.09.25 @ 14:28:30 Sessions 1 Manual Loads 0 Difficulty Rogue Special Mode None Game No. 153 Rogue 153 Adventurer 0 Explorer 0 Win Type - Total 1 Types 1/0/0/0/0/0/0/0/0 Lore% 58 Gallery% 56 Achievement% 49 Wizard Run 0 Options --------- ASCII 0 Keyboard 0 Movement Numpad Keybinds 0 Fullscreen 1 Font 18/X11Bold Map View 76x50 Tactical HUD 1 Map Filters NONE Filters NONE Steam 1 RUN: 59400de8-df91-41c1-8532-39a3d64651b5